bitfinex/quotes_ETHUSD_20260129
["timestamp","ask_amount","ask_price","bid_price","bid_amount"]
[1769699602830,0.88404823,2827.9,2826.2,0.002]
[1769699603063,1.68536309,2827.9,2826.2,0.002]
[1769699603731,1.68536309,2827.9,2826.2,0.88658]
[1769699604129,0.88404823,2827.9,2826.2,0.88658]
[1769699604349,0.88382945,2828.6,2826.5,0.02835723]
[1769699604655,0.88382945,2828.6,2826.8,0.02835723]
[1769699604855,0.88382945,2828.6,2826.4,13.17153767]
[1769699604856,0.88382945,2828.6,2826.5,0.02835723]
[1769699605024,0.88382945,2828.6,2826.4,13.17153767]
[1769699605227,0.44191473,2828.5,2826.2,0.88658]
[1769699605428,0.02835723,2828.4,2826.2,0.88658]
[1769699605627,0.02835723,2828.4,2826.3,12.61435864]
[1769699605628,0.8839232,2828.3,2826.3,12.61435864]
[1769699605935,0.88367325,2829.1,2827.1,0.02835723]
[1769699606143,0.02835723,2830.3,2827.7,0.02835723]
[1769699606357,3.53248951,2830.9,2828.1,0.02835723]
[1769699606663,0.02835723,2830.8,2828.1,0.02835723]
[1769699606883,0.02835723,2830.4,2827.9,12.61435864]
[1769699607240,0.02835723,2830.0,2827.3,0.76935723]
[1769699607484,0.02835723,2830.4,2827.6,12.64271587]
[1769699607765,0.88323617,2830.5,2828.4,0.02835723]
[1769699607981,0.88323617,2830.5,2828.3,0.8839232]
[1769699608152,0.9115934,2830.5,2828.3,0.8839232]
[1769699608537,0.02835723,2830.3,2828.3,0.8839232]
[1769699608737,0.88323617,2830.5,2828.3,13.49828184]
[1769699609174,0.9115934,2830.5,2828.3,13.49828184]
[1769699609342,0.88323617,2830.5,2828.3,13.49828184]
[1769699609766,0.02835723,2830.4,2828.3,0.8839232]
[1769699611253,0.02835723,2830.0,2828.3,0.88391923]
[1769699611762,0.001,2830.1,2828.2,16.15005145]
[1769699612068,0.001,2830.1,2828.5,0.02835723]
[1769699612299,0.001,2830.1,2828.3,12.64271587]
[1769699612939,0.001,2830.1,2828.1,3.53569281]
[1769699613139,0.001,2830.1,2828.0,3.53569281]
[1769699613785,0.001,2830.1,2827.8,3.53606789]
[1769699613992,0.001,2830.1,2827.8,3.56442512]
[1769699614195,0.001,2830.1,2826.6,13.51712816]
[1769699614196,0.02835723,2829.6,2826.6,13.51712816]
[1769699614375,0.02835723,2829.6,2827.0,3.53727718]
[1769699614575,0.001,2830.1,2827.7,0.88409452]
[1769699614810,0.001,2830.1,2827.7,0.91245175]
[1769699615012,0.001,2830.1,2827.7,0.88409452]
[1769699615309,0.001,2830.1,2827.9,0.02835723]
[1769699615805,0.001,2830.1,2827.7,0.91245175]
[1769699616007,0.02835723,2830.0,2827.7,0.91245175]
[1769699616225,0.02835723,2830.0,2827.7,0.88409452]
[1769699616429,0.02835723,2830.0,2826.7,3.56595983]
[1769699616430,0.02835723,2829.6,2826.7,3.56595983]
[1769699616625,0.02835723,2829.3,2826.7,17.05273734]
[1769699616932,0.02835723,2829.1,2826.7,17.05273734]
[1769699617093,0.02835723,2829.1,2826.4,0.002]
[1769699617287,0.02835723,2828.4,2826.7,0.88442165]
[1769699617538,0.02835723,2828.2,2826.4,0.002]
[1769699617698,0.02835723,2828.4,2826.4,0.002]
[1769699617699,0.91228043,2828.4,2826.4,0.002]
[1769699617904,0.02835723,2828.0,2826.4,0.002]
[1769699618224,0.02835723,2827.8,2826.4,0.002]
[1769699618392,0.02835723,2828.2,2826.4,0.002]
[1769699618923,0.02835723,2828.0,2826.4,0.002]
[1769699619126,0.02835723,2827.8,2826.4,0.002]
[1769699619526,0.02835723,2827.6,2826.4,0.002]
[1769699619733,0.88423584,2827.3,2826.4,0.002]
[1769699620023,0.44495364,2827.2,2826.4,0.002]
[1769699620400,0.47331087,2827.2,2826.2,0.002]
[1769699620725,0.47331087,2827.2,2825.2,0.8868931]
[1769699621792,0.88429839,2827.1,2825.2,0.002]
[1769699621989,0.51783751,2827.0,2825.2,0.002]
[1769699622232,0.48948028,2827.0,2825.2,0.002]
[1769699622601,0.51783751,2827.0,2825.2,0.002]
[1769699622831,0.88429839,2827.1,2825.2,0.002]
[1769699622990,0.88417329,2827.5,2825.2,0.002]
[1769699623197,0.02835723,2827.2,2825.2,0.002]
[1769699623792,0.88429839,2827.1,2825.2,0.8868931]
[1769699623998,3.56470399,2827.8,2825.5,13.51512816]
[1769699624298,1.24058116,2827.7,2825.6,0.02835723]
[1769699624494,0.3564704,2827.7,2825.8,0.02835723]
[1769699624700,0.3564704,2827.7,2825.6,13.54348539]
[1769699624907,0.3564704,2827.7,2825.8,13.51512816]
[1769699625234,0.02835723,2827.5,2825.4,0.002]
[1769699625939,0.88420456,2827.4,2825.4,0.002]
[1769699626439,0.88414202,2827.6,2825.5,13.54348539]
[1769699626741,0.02835723,2826.7,2825.1,0.88691831]
[1769699627106,0.02835723,2826.7,2825.1,0.002]
[1769699627351,0.02835723,2826.5,2825.1,0.8869108]
[1769699627808,0.02835723,2826.5,2825.1,0.002]
[1769699627809,0.8845174,2826.4,2825.1,0.002]
[1769699628018,0.47345166,2826.3,2825.1,0.002]
[1769699628621,0.02835723,2825.9,2823.9,0.88526912]
[1769699628829,0.02835723,2826.0,2823.9,0.88526912]
[1769699629920,0.88458,2826.2,2824.0,17.05814309]
[1769699630120,1.37421517,2826.2,2824.1,0.02835723]
[1769699630416,0.88451701,2826.5,2824.5,0.02835723]
[1769699630730,0.88451701,2826.5,2824.3,13.54348539]
[1769699631117,0.88451701,2826.5,2824.3,13.51512816]
[1769699631550,0.02835723,2826.4,2824.3,13.51512816]
[1769699632129,0.8845487,2826.3,2824.4,0.88514374]
[1769699632328,0.44511007,2826.2,2824.4,0.88514374]
[1769699632744,0.8845487,2826.3,2824.0,3.54257498]
[1769699632745,0.02835723,2825.7,2824.0,0.002]
[1769699632920,0.02835723,2825.5,2824.0,0.002]
[1769699633123,0.02835723,2825.3,2824.0,0.002]
[1769699633425,0.02835723,2824.2,2822.0,0.88589652]
[1769699633622,0.02835723,2824.7,2822.2,0.02835723]
[1769699633859,0.02835723,2824.7,2822.0,14.42938191]
[1769699633860,0.02835723,2824.5,2822.0,14.42938191]
[1769699634066,0.88514374,2824.4,2822.0,14.42938191]
[1769699634228,0.88514374,2824.4,2822.4,0.02835723]
[1769699634429,0.88514374,2824.4,2822.3,13.54348539]
[1769699634724,0.8850184,2824.8,2822.5,13.51512816]
[1769699634939,0.02835723,2824.7,2822.5,13.51512816]
[1769699635350,0.02835723,2824.5,2822.5,13.51512816]
[1769699635669,0.02835723,2824.7,2822.0,14.36259857]
[1769699635957,0.02835723,2824.5,2822.0,14.36259857]
[1769699636256,0.88514374,2824.4,2822.3,0.88580235]
[1769699636554,0.02835723,2824.3,2822.3,0.88580235]
[1769699637229,0.02835723,2824.1,2822.3,0.88580235]
[1769699637621,0.02835723,2824.3,2822.7,0.002]
[1769699637856,0.02835723,2823.2,2821.6,0.002]
[1769699638035,0.88548861,2823.3,2822.5,0.002]
[1769699638238,1.33106864,2823.3,2822.5,0.002]
[1769699638970,0.02835723,2823.2,2822.5,0.002]
[1769699639282,0.02835723,2823.0,2821.6,0.002]
[1769699639442,0.02835723,2822.9,2821.6,0.002]
[1769699639991,0.02835723,2822.4,2821.6,0.002]
[1769699640279,0.02835723,2823.1,2821.6,0.002]
[1769699640280,3.54258183,2823.0,2821.6,0.002]
[1769699640442,0.88555134,2823.1,2821.6,0.002]
[1769699641476,0.91390857,2823.1,2821.6,0.002]
[1769699641793,0.88555134,2823.1,2821.6,0.002]
[1769699642079,0.02835723,2823.0,2821.6,0.002]
[1769699642238,0.88561408,2822.9,2821.6,0.002]
[1769699642446,0.02835723,2822.2,2820.2,0.002]
[1769699642640,0.02835723,2821.6,2820.2,0.002]
[1769699642872,0.02835723,2821.1,2819.3,0.002]
[1769699643043,0.02835723,2820.7,2819.3,0.002]
[1769699643242,0.02835723,2820.5,2819.3,0.002]
[1769699643443,0.02835723,2820.5,2818.8,0.002]
[1769699643779,0.02835723,2820.1,2818.8,0.002]
[1769699643944,0.02835723,2819.9,2818.4,0.2]
[1769699644139,0.02835723,2820.1,2818.4,0.2]
[1769699644140,0.88652482,2820.0,2818.4,1.08702251]
[1769699644333,0.88652482,2820.0,2818.5,0.88699662]
[1769699644579,0.88652482,2820.0,2818.4,1.08701682]
[1769699644871,0.88652482,2820.0,2818.4,0.2]
[1769699645037,0.44326241,2819.9,2818.4,0.2]
[1769699645240,3.54490127,2821.0,2818.4,14.56371829]
[1769699645453,3.5732585,2821.0,2818.4,14.53536106]
[1769699645638,3.5732585,2821.0,2818.4,14.56371829]
[1769699645842,3.5732585,2821.0,2818.4,14.53536106]
[1769699646085,0.02835723,2820.6,2818.4,14.53536106]
[1769699646396,0.02835723,2820.2,2818.4,14.53536106]
[1769699646542,0.02835723,2820.0,2818.4,0.2]
[1769699646742,0.02835723,2819.8,2818.4,0.2]
[1769699646950,0.02835723,2819.2,2818.4,0.2]
[1769699647153,0.02835723,2819.2,2818.3,1e-08]
[1769699647475,0.02835723,2820.1,2818.3,1e-08]
[1769699647476,0.88636766,2820.5,2818.4,14.33536932]
[1769699647772,0.91472489,2820.5,2818.4,14.33536932]
[1769699648194,0.91472489,2820.5,2818.3,1e-08]
[1769699648195,0.88652482,2820.0,2818.3,1e-08]
[1769699648336,0.02835723,2819.7,2818.3,1e-08]
[1769699648769,0.88652482,2820.0,2818.3,1e-08]
[1769699648976,0.88646195,2820.2,2818.3,1e-08]
[1769699649148,1.33252865,2820.2,2818.3,1e-08]
[1769699649550,0.742,2820.9,2818.3,1e-08]
[1769699649551,0.02835723,2821.4,2818.8,0.02835723]
[1769699649746,0.88605351,2821.5,2819.0,13.47670205]
[1769699649964,0.02835723,2821.2,2819.0,13.44834482]
[1769699650165,0.88611632,2821.3,2819.1,0.88680784]
[1769699650364,0.001,2820.3,2819.1,0.88680784]
[1769699651197,0.001,2820.3,2819.1,14.33515266]
[1769699651376,0.88599071,2821.7,2819.3,13.44834482]
[1769699651595,0.91434794,2821.7,2819.3,13.44834482]
[1769699651742,0.02835723,2821.5,2819.3,13.44834482]
[1769699652065,0.02835723,2821.3,2819.3,13.44834482]
[1769699652270,0.91434794,2821.7,2819.4,0.88671348]
[1769699652573,0.88599071,2821.7,2819.4,14.36341553]
[1769699652887,0.88583374,2822.2,2819.9,13.44834482]
[1769699653072,0.47410974,2822.1,2819.9,13.44834482]
[1769699653254,0.44575251,2822.1,2819.9,13.44834482]
[1769699653664,0.02835723,2822.0,2819.9,13.44834482]
[1769699654157,0.02835723,2821.8,2819.9,0.88653888]
[1769699654352,0.88592792,2821.9,2820.0,0.02835723]
[1769699654554,0.02835723,2821.7,2819.0,13.44834482]
[1769699654741,0.02835723,2821.7,2819.9,0.88654825]
[1769699654945,0.88592792,2821.9,2819.2,13.44834482]
[1769699655184,0.88592792,2821.9,2819.6,0.88663332]
[1769699655381,0.88592792,2821.9,2819.4,0.02835723]
[1769699655382,0.44579968,2821.8,2819.4,0.02835723]
[1769699655582,0.44579968,2821.8,2819.9,0.88655016]
[1769699656053,0.02835723,2822.2,2819.9,0.88655016]
[1769699656054,0.88558271,2823.0,2820.3,0.02835723]
[1769699656255,0.88558271,2823.0,2820.6,0.88633624]
[1769699656456,0.88558271,2823.0,2820.7,0.02835723]
[1769699656779,0.02835723,2822.7,2820.1,13.44834482]
[1769699656942,0.91393994,2823.0,2819.8,0.77135723]
[1769699656943,0.88558271,2823.0,2820.9,13.44834482]
[1769699657357,0.88558271,2823.0,2820.5,0.88635239]
[1769699657972,1.62858271,2823.0,2820.5,0.91470962]
[1769699658198,3.54233085,2823.2,2820.8,0.88627339]
[1769699658392,3.54233085,2823.2,2821.0,0.02835723]
[1769699658731,0.88548861,2823.4,2821.0,0.02835723]
[1769699658732,0.70846617,2823.1,2821.6,13.47670205]
[1769699658875,4.2838722,2824.2,2821.6,13.47670205]
[1769699658876,3.54049637,2824.5,2822.0,0.02835723]
[1769699659268,3.54049637,2824.5,2821.6,13.44834482]
[1769699659269,3.5688536,2824.5,2821.6,13.44834482]
[1769699659501,0.51969347,2824.4,2821.7,13.47670205]
[1769699659796,0.51969347,2824.4,2822.4,13.47670205]
[1769699659994,0.88508107,2824.6,2822.8,13.47670205]
[1769699660196,3.53972205,2825.1,2822.9,0.88561408]
[1769699660498,14.01657007,2825.0,2821.3,0.36619796]
[1769699660696,14.01657007,2825.0,2821.1,0.743]
[1769699660697,0.02835723,2824.3,2822.0,3.54353734]
[1769699660995,0.743,2824.3,2822.6,0.88569865]
[1769699661295,3.53972205,2825.1,2821.9,13.44834482]
[1769699661296,0.743,2824.4,2822.2,0.88581199]
[1769699661596,0.743,2824.4,2821.6,13.44834482]
[1769699661800,0.02835723,2824.1,2821.6,13.44834482]
[1769699661998,0.02835723,2824.1,2821.0,0.02835723]
[1769699661999,0.02835723,2823.7,2821.4,0.88606277]
[1769699662167,0.02835723,2823.7,2821.5,13.47670205]
[1769699662168,0.88539453,2823.6,2821.5,13.47670205]
[1769699662363,0.88535396,2823.8,2822.0,0.02835723]
[1769699662567,0.88535396,2823.8,2821.8,13.47670205]
[1769699662797,0.88504973,2824.7,2822.7,0.02835723]
[1769699662963,0.88504973,2824.7,2822.9,0.02835723]
[1769699663163,0.88504973,2824.7,2822.9,13.47670205]
[1769699663468,0.88504973,2824.7,2823.1,13.44834482]
[1769699663785,0.88504973,2824.7,2823.1,10.94834482]
[1769699664185,0.001,2824.8,2823.2,0.88551997]
[1769699664784,0.001,2824.8,2823.5,0.02835723]
[1769699664991,0.001,2824.8,2823.6,0.02835723]
[1769699665191,0.001,2824.8,2823.4,0.02835723]
[1769699665612,0.001,2824.8,2823.6,0.02835723]
[1769699665812,0.001,2824.8,2823.8,0.02835723]
[1769699665996,3.56672736,2826.2,2824.5,0.02835723]
[1769699665997,0.88458,2826.2,2824.5,0.02835723]
[1769699666198,0.88423584,2827.3,2825.1,0.02835723]
[1769699666515,0.88423584,2827.3,2824.8,0.8850184]
[1769699666516,0.88523584,2827.3,2825.3,13.12121089]
[1769699666717,0.47147515,2827.2,2824.8,0.8850184]
[1769699666916,0.44311792,2827.2,2825.0,0.2335703]
[1769699667232,0.001,2827.1,2824.9,13.12121089]
[1769699667715,0.001,2827.0,2825.4,13.12121089]
[1769699667916,0.001,2827.1,2825.7,0.02835723]
[1769699668133,3.53666336,2827.6,2825.7,0.02835723]
[1769699668134,0.001,2827.6,2825.7,0.02835723]
[1769699668439,0.02835723,2828.6,2825.7,0.02835723]
[1769699668440,0.001,2827.5,2826.3,0.02835723]
[1769699668603,0.8839232,2828.3,2826.5,0.02835723]
[1769699668785,0.8839232,2828.3,2826.3,13.12121089]
[1769699668991,0.8839232,2828.3,2825.7,3.53882086]
[1769699668992,0.02835723,2828.1,2825.7,0.88472109]
[1769699669192,0.02835723,2827.9,2825.7,0.88472833]
[1769699669401,0.02835723,2827.7,2825.3,3.53940646]
[1769699669604,0.02835723,2827.3,2824.7,13.86321089]
[1769699669821,0.02835723,2827.1,2825.1,0.88490055]
[1769699670032,0.02835723,2827.9,2825.1,0.88490055]
[1769699670033,4.27769281,2828.4,2825.7,0.88472391]
[1769699670224,13.71132727,2826.9,2823.6,3.54155716]
[1769699670519,13.71132727,2826.9,2822.4,1.76616873]
[1769699670520,0.02835723,2825.0,2822.7,3.54267505]
[1769699670816,0.02835723,2825.0,2822.4,13.12121089]
[1769699671034,0.02835723,2824.6,2822.3,0.742]
[1769699671325,0.02835723,2824.6,2821.5,16.69378039]
[1769699671326,0.02835723,2824.4,2821.8,0.88594379]
[1769699671531,0.02835723,2824.0,2821.5,16.66532829]
[1769699671823,0.02835723,2824.9,2822.0,3.57184422]
[1769699672013,0.02835723,2825.4,2822.4,0.02835723]
[1769699672215,0.88492442,2825.1,2822.5,0.88573959]
[1769699672889,0.02835723,2825.0,2821.8,3.54376558]
[1769699673093,0.02835723,2824.8,2821.9,0.02835723]
[1769699673417,0.02835723,2824.8,2821.6,0.02835723]
[1769699673418,0.02835723,2824.6,2821.8,3.57213493]
[1769699673620,0.02835723,2824.6,2821.6,0.02835723]
[1769699673621,0.02835723,2824.6,2822.1,0.003]
[1769699673838,0.02835723,2824.4,2822.1,0.88885529]
[1769699674019,0.02835723,2824.4,2822.1,0.003]
[1769699674209,0.88517508,2824.3,2822.1,0.003]
[1769699674414,0.88517508,2824.3,2822.4,0.02835723]
[1769699674735,1.68183266,2824.3,2822.1,0.03135723]
[1769699674887,1.68183266,2824.3,2822.1,0.003]
[1769699675618,0.79665758,2824.3,2822.4,13.25344468]
[1769699675820,0.8850184,2824.8,2822.9,0.02835723]
[1769699676218,0.001,2824.9,2823.0,0.88558271]
[1769699676618,0.001,2824.9,2823.0,0.91393994]
[1769699676825,0.001,2824.9,2823.0,0.88558271]
[1769699677024,0.001,2824.9,2823.2,0.02835723]
[1769699677332,0.88442353,2826.7,2824.2,0.02835723]
[1769699677631,0.88442353,2826.7,2824.0,13.22508745]
[1769699677829,0.88442353,2826.7,2824.1,0.02835723]
[1769699678030,0.88442353,2826.7,2824.3,0.02835723]
[1769699678197,0.88442353,2826.7,2824.1,0.88523777]
[1769699678198,0.88448611,2826.5,2824.1,0.88523777]
[1769699678893,0.742,2826.4,2824.1,0.88523777]
[1769699679216,0.742,2826.3,2824.1,0.88523777]
[1769699679423,0.742,2826.3,2824.0,13.22508745]
[1769699679588,0.02835723,2826.2,2824.0,0.88525732]
[1769699679934,0.91284334,2826.5,2824.0,0.88525732]
[1769699680171,0.742,2826.1,2824.0,0.88525732]
[1769699680450,0.91299983,2826.0,2823.6,0.88538175]
[1769699680668,0.02835723,2825.8,2823.6,0.88538175]
[1769699680815,0.742,2825.7,2823.5,0.88540886]
[1769699681122,0.02835723,2825.4,2822.9,0.88561084]
[1769699681321,0.02835723,2825.4,2823.1,0.88553334]
[1769699681663,0.02835723,2825.4,2823.1,0.88553092]
[1769699681960,0.02835723,2825.4,2823.2,0.88550971]
[1769699682112,0.02835723,2825.4,2823.1,0.8855402]
[1769699682313,0.02835723,2825.1,2822.5,0.88573959]
[1769699682515,0.02835723,2824.7,2822.5,0.88573959]
[1769699682768,0.742,2824.6,2822.1,0.003]
[1769699682914,0.02835723,2824.5,2822.1,0.003]
[1769699683348,0.02835723,2823.9,2822.1,0.003]
[1769699683561,0.02835723,2823.7,2822.1,0.003]
[1769699683714,0.02835723,2823.5,2822.1,0.003]
[1769699683914,0.02835723,2823.3,2822.1,0.003]
[1769699684335,1.62751997,2823.2,2822.1,0.003]
[1769699684536,0.51979571,2823.1,2822.1,0.003]
[1769699685353,0.77035723,2823.0,2820.0,13.22508745]
[1769699685654,0.02835723,2822.6,2820.2,0.88645636]
[1769699685813,0.02835723,2822.6,2819.7,0.02835723]
[1769699685814,0.02835723,2822.4,2822.3,0.002]
[1769699686018,0.02835723,2822.4,2819.2,13.25344468]
[1769699686019,0.02835723,2822.2,2819.2,13.25344468]
[1769699686266,0.02835723,2822.0,2819.6,0.8866301]
[1769699686420,0.02835723,2822.0,2819.2,13.22508745]
[1769699686421,0.02835723,2821.6,2819.3,0.88674493]
[1769699686763,0.02835723,2821.6,2819.1,0.88680703]
[1769699686764,0.02835723,2820.7,2819.1,0.88680703]
[1769699686920,0.02835723,2820.7,2819.0,3.54725114]
[1769699687264,0.02835723,2821.3,2819.0,0.88682034]
[1769699687265,0.742,2820.8,2819.0,0.88682034]
[1769699687478,0.02835723,2820.7,2818.6,0.88696381]
[1769699687697,0.02835723,2820.3,2818.4,0.88702778]
[1769699687853,0.02835723,2821.0,2818.9,3.54743855]
[1769699688054,0.02835723,2821.0,2819.2,0.88676094]
[1769699688239,0.742,2820.9,2819.1,0.88680538]
[1769699688442,0.88627339,2820.8,2818.7,0.02835723]
[1769699688746,0.88627339,2820.8,2818.8,13.22508745]
[1769699688982,1.62827339,2820.8,2818.8,13.22508745]
[1769699689362,0.02835723,2820.7,2818.5,3.54791266]
[1769699690174,0.742,2820.6,2818.5,0.88699662]
[1769699690353,0.02835723,2820.3,2818.3,1e-08]
[1769699690561,0.02835723,2820.1,2818.3,1e-08]
[1769699690758,0.02835723,2819.9,2817.6,1.12944689]
[1769699690991,0.02835723,2819.7,2817.1,0.02835723]
[1769699691289,0.742,2819.6,2817.8,0.8872145]
[1769699691574,0.742,2819.8,2817.9,0.88717825]
[1769699691785,0.02835723,2819.4,2815.5,9.12819309]
[1769699691965,0.02835723,2818.8,2817.0,0.88744432]
[1769699692165,0.02835723,2818.9,2816.4,13.25344468]
[1769699692366,0.88709105,2818.2,2816.5,0.88762648]
[1769699692546,0.02835723,2818.1,2816.5,0.88762648]
[1769699692745,0.02835723,2818.5,2816.5,0.88762648]
[1769699692954,0.02835723,2818.3,2816.5,0.88762648]
[1769699693279,0.02835723,2818.1,2816.5,0.88762648]
[1769699693576,0.88690222,2818.8,2816.6,13.22508745]
[1769699693767,0.02835723,2818.7,2816.6,13.22508745]
[1769699693969,0.02835723,2818.5,2816.6,13.22508745]
[1769699694166,0.02835723,2818.3,2816.6,13.22508745]
[1769699694355,0.02835723,2817.9,2815.8,13.22508745]
[1769699694560,0.02835723,2817.9,2816.4,3.55060938]
[1769699694755,0.02835723,2817.9,2816.0,3.55108589]
[1769699694961,0.02835723,2817.9,2816.5,0.88761291]
[1769699695258,0.02835723,2817.9,2815.7,3.55140449]
[1769699695259,0.02835723,2817.2,2815.3,0.24203995]
[1769699695459,0.02835723,2817.1,2815.6,0.88789405]
[1769699695658,0.02835723,2817.9,2816.2,0.88770507]
[1769699695851,0.02835723,2817.7,2815.0,3.58070253]
[1769699696045,0.02835723,2817.3,2815.6,3.55153792]
[1769699696250,0.02835723,2817.1,2815.1,3.55220059]
[1769699696460,0.02835723,2816.4,2815.5,1.27288264]
[1769699696660,0.02835723,2816.2,2814.9,3.55241895]
[1769699696870,0.02835723,2816.2,2815.0,3.5523925]
[1769699697075,0.743,2816.8,2815.1,3.55226877]
[1769699697379,0.02835723,2816.9,2815.1,0.88805071]
[1769699697578,0.02835723,2816.9,2814.0,13.51460805]
[1769699697579,0.02835723,2816.5,2814.0,13.51460805]
[1769699697779,0.02835723,2816.3,2814.5,3.55297733]
[1769699698084,0.02835723,2816.3,2814.0,13.51460805]
[1769699698280,0.02835723,2815.9,2813.6,0.0202952]
[1769699698482,0.02835723,2815.5,2813.7,0.88850979]
[1769699698682,0.02835723,2815.3,2813.6,0.90883348]
[1769699698982,7.74320686,2815.1,2813.0,0.88871143]
[1769699699182,12.62967148,2815.5,2813.0,3.55487007]
[1769699699183,1.51732069,2815.0,2813.0,3.55487007]
[1769699699387,0.02835723,2814.6,2811.9,13.51460805]
[1769699699583,7.74320686,2815.1,2811.8,0.02835723]
[1769699699880,0.02835723,2815.2,2811.8,0.02835723]
[1769699699881,0.02835723,2814.4,2813.0,0.8887151]
[1769699700050,0.02835723,2814.4,2812.3,3.55576524]
[1769699700251,0.88791021,2815.6,2813.6,0.88852675]
[1769699700447,0.02835723,2815.3,2812.7,14.40343373]
[1769699700695,3.55138859,2816.1,2812.7,14.40343373]
[1769699700696,1.21930395,2815.8,2814.0,0.02835723]
[1769699700852,0.8877621,2816.1,2813.9,13.51460805]
[1769699701054,0.91611933,2816.1,2813.9,13.51460805]
[1769699701274,0.44671296,2816.0,2813.9,13.51460805]
[1769699701478,0.02835723,2815.7,2813.9,13.51460805]
[1769699701754,0.02835723,2815.7,2812.7,0.88882568]
[1769699701755,0.02835723,2815.9,2813.4,13.54296528]
[1769699701955,0.02835723,2815.8,2813.4,13.51460805]
[1769699702153,0.02835723,2815.6,2813.4,13.51460805]
[1769699702357,0.02835723,2815.2,2813.5,0.88857295]
[1769699702749,0.88781561,2815.9,2813.5,14.403181]
[1769699702954,0.02835723,2815.5,2813.5,14.403181]
[1769699703266,0.02835723,2815.3,2813.5,14.403181]
[1769699703783,0.88781561,2815.9,2813.5,14.43153823]
[1769699703956,0.88781561,2815.9,2813.8,0.02835723]
[1769699704158,1.37923044,2815.9,2813.9,13.51460805]
[1769699704468,0.02835723,2814.5,2813.0,14.40333795]
[1769699704679,0.88800483,2815.3,2813.0,14.40333795]
[1769699704987,0.88800483,2815.3,2813.0,14.43169518]
[1769699705291,3.54984984,2817.1,2814.1,13.51460805]
[1769699705454,0.88746893,2817.0,2814.6,13.51460805]
[1769699705857,0.88746893,2817.0,2814.8,13.51460805]
[1769699706067,1.23783632,2817.2,2814.9,13.54296528]
[1769699706409,0.88712252,2818.1,2815.9,14.40242366]
[1769699706578,0.88712252,2818.1,2815.9,13.51460805]
[1769699706579,0.02835723,2817.4,2815.9,13.51460805]
[1769699706756,0.02835723,2817.6,2815.9,13.51460805]
[1769699707182,0.35768909,2818.0,2815.9,13.51460805]
[1769699708061,0.35768909,2818.0,2816.3,13.51460805]
[1769699708260,0.02835723,2818.8,2816.3,13.51460805]
[1769699708513,0.88677639,2819.2,2816.8,14.40214]
[1769699708664,1.24387696,2819.3,2817.4,0.02835723]
[1769699708864,1.24387696,2819.3,2817.3,13.51460805]
[1769699708865,0.02835723,2819.0,2817.3,13.51460805]
[1769699709384,0.02835723,2819.0,2816.8,0.88753195]
[1769699709385,0.02835723,2818.8,2816.8,0.88753195]
[1769699709586,1.27223419,2819.3,2815.9,13.51460805]
[1769699709587,0.02835723,2818.3,2815.9,13.51460805]
[1769699709785,0.02835723,2818.7,2816.7,0.8875528]
[1769699710009,0.02835723,2819.1,2816.7,0.8875528]
[1769699710189,1.27223419,2819.3,2816.7,0.8875528]
[1769699710190,0.02835723,2819.0,2816.7,0.8875528]
[1769699710394,1.24387696,2819.3,2816.7,14.43051808]
[1769699710592,1.24387696,2819.3,2817.2,13.74817835]
[1769699710593,0.35711482,2819.3,2817.2,13.74817835]
[1769699710768,0.35711482,2819.3,2817.9,0.02835723]
[1769699710769,0.23296025,2819.3,2817.9,0.02835723]
[1769699710971,0.02835723,2820.8,2818.5,0.02835723]
[1769699711165,0.88605351,2821.5,2818.9,13.54296528]
[1769699711404,0.44586248,2821.4,2819.3,0.02835723]
[1769699711595,0.44586248,2821.4,2819.5,0.02835723]
[1769699711798,1.2491576,2821.8,2819.9,0.02835723]
[1769699712007,1.24914581,2821.8,2820.0,13.51460805]
[1769699712332,0.36317852,2821.8,2820.3,13.54296528]
[1769699712466,3.54254065,2822.9,2820.4,0.88639909]
[1769699712467,0.02835723,2822.8,2820.4,0.88639909]
[1769699712822,4.06237754,2823.1,2820.4,0.88639909]
[1769699712823,0.51979571,2823.1,2821.0,0.02835723]
[1769699712975,0.88557052,2823.1,2820.9,13.51460805]
[1769699713174,0.88557052,2823.1,2820.4,0.91475632]
[1769699713175,0.88553436,2823.2,2821.2,0.02835723]
[1769699713371,0.88523777,2824.1,2821.6,13.54296528]
[1769699713577,0.88523777,2824.1,2822.2,0.02835723]
[1769699713578,1.2421561,2824.1,2822.2,0.02835723]
[1769699713784,0.35691833,2824.1,2822.6,13.54296528]
[1769699713983,0.88476783,2825.6,2823.4,13.54296528]
[1769699714190,0.88476783,2825.6,2823.4,13.51460805]
[1769699714414,3.53907134,2825.8,2822.8,14.40022815]
[1769699714616,0.02835723,2825.3,2822.4,0.88576063]
[1769699714915,0.02835723,2825.3,2821.8,0.02835723]
[1769699714916,0.02835723,2824.7,2821.8,0.88593297]
[1769699715096,0.02835723,2824.7,2821.4,3.54424661]
[1769699715097,0.02835723,2823.9,2821.4,3.54424661]
[1769699715302,0.02835723,2823.9,2821.0,0.02835723]
[1769699715613,0.02835723,2824.1,2821.2,13.54296528]
[1769699715924,0.02835723,2824.5,2821.6,3.57244368]
[1769699716128,0.02835723,2824.3,2821.5,0.8860414]
[1769699716408,3.54132728,2823.9,2821.1,0.02835723]
[1769699716616,3.54132728,2823.9,2821.3,0.02835723]
[1769699716815,3.56968451,2823.9,2821.1,14.40078719]
[1769699717014,3.54132728,2823.9,2821.2,0.02835723]
[1769699717320,3.54132728,2823.9,2820.7,0.743]
[1769699717321,0.02835723,2823.5,2820.7,0.743]
[1769699717478,0.02835723,2823.3,2821.0,0.88618952]
[1769699717890,0.02835723,2823.3,2820.7,0.743]
[1769699718143,0.02835723,2822.8,2819.9,0.88654785]
[1769699718286,0.02835723,2822.8,2819.3,3.57523735]
[1769699718287,0.02835723,2822.1,2819.3,13.51460805]
[1769699718487,0.02835723,2822.1,2819.2,0.88677141]
[1769699718488,0.02835723,2821.7,2819.2,0.88677141]
[1769699718689,0.88595931,2821.8,2819.3,0.91508992]
[1769699718935,0.88577097,2822.4,2820.1,0.02835723]
[1769699719083,0.88577097,2822.4,2820.5,0.02835723]
[1769699719282,0.88577097,2822.4,2819.9,13.54296528]
[1769699719492,0.88577097,2822.4,2820.3,0.02835723]
[1769699719698,0.88561408,2822.9,2820.7,0.02835723]
[1769699719904,0.44279942,2822.8,2820.2,13.54296528]
[1769699720315,0.02835723,2822.5,2819.3,1.62973269]
[1769699720516,0.02835723,2822.3,2819.9,0.02835723]
[1769699720717,0.88577097,2822.4,2820.1,0.02835723]
[1769699720923,0.44288549,2822.3,2819.3,1.62973269]
[1769699721121,0.44288549,2822.3,2819.1,0.02835723]
[1769699721122,0.02835723,2821.5,2818.3,13.51460805]
[1769699721437,0.02835723,2821.5,2817.5,1.598]
[1769699721438,0.02835723,2820.7,2817.5,3.54922202]